[Event "Romanian Rapid Open 2022"]
[Site "Sebes"]
[Date "2022.12.02"]
[Round "3.6"]
[White "Anton, Teodor"]
[Black "Ileana, George"]
[Result "0-1"]
[ECO "D11"]
[WhiteElo "2438"]
[BlackElo "2343"]
[Annotator "TA"]
[PlyCount "90"]
[EventDate "2022.12.02"]
[EventType "rapid"]
[EventCountry "ROU"]
[SourceTitle "playchess.com"]
[Source "ChessBase"]
[SourceQuality "1"]
[TimeControl "600+5"]

{[%evp 13,90,10,15,26,34,28,39,37,43,32,61,57,50,18,23,27,10,0,0,0,0,-43,-27,-39,-46,-36,-27,-29,-20,-94,-94,-93,-94,-92,-92,-92,-92,-102,-98,-125,-129,-154,-152,-152,-150,-275,-255,-272,-273,-290,-300,-307,-287,-388,-262,-428,-263,-234,-70,-70,-70,-86,-84,-83,-91,-64,-75,-620,-618,-29984,-29985,-29988,-29989,-29989,-29990,-29990,-29991,-29991,-29992]} 1. d4 {[%emt 0:00:03]} d5 {[%emt 0:00:01]} 2. c4 {[%emt 0:00:08]} c6 {[%emt 0:00:01]} 3. Nf3 {[%emt 0:00:03]} Nf6 {[%emt 0:00:02]} 4. Qc2 {[%emt 0:00:02]} g6 {[%emt 0:00:07]} 5. Bf4 {[%emt 0:00:02]} Bg7 {[%emt 0:00:04]} 6. e3 {[%emt 0:00:02]} Bf5 {[%emt 0:00:13]} 7. Qb3 {[%emt 0:00:02]} Qb6 {[%emt 0:00:06]} 8. Nc3 {[%emt 0:00:03] D11: Slav Defence: 3 Nf3 sidelines and 3...Nf6 4 e3 Bg4.} Qxb3 {[%emt 0:00:25]} 9. axb3 {[%emt 0:00:02]} Nbd7 {[%emt 0:00:07]} 10. h3 {[%emt 0:00:03] White is slightly better.} h5 {[%emt 0:00:08]} 11. Be2 {[%emt 0:00:16] [#]} e6 $146 {[%emt 0:00:35]} ({Predecessor:} 11... O-O 12. Ne5 Ne4 13. Nxd7 Bxd7 14. cxd5 Nxc3 15. bxc3 cxd5 16. Kd2 a6 17. Ra5 Bc6 {1-0 (88) Arkell,K (2400)-Marusenko,P (2057) London 2019}) 12. O-O {[%emt 0:01:19]} a6 {[%emt 0:01:05]} 13. c5 {[%emt 0:00:32]} O-O {[%emt 0:00:48]} 14. Bd6 {[%emt 0:00:40]} Rfe8 {[%emt 0:00:13]} 15. Ne5 {[%emt 0:00:03]} Nxe5 {[%emt 0:00:35]} 16. dxe5 {[%emt 0:00:22]} Nd7 {[%emt 0:00:05]} 17. f4 {[%emt 0:00:16]} h4 {[%emt 0:00:13]} 18. e4 {[%emt 0:02:09]} dxe4 {[%emt 0:00:13]} 19. Ra4 $1 {[%emt 0:01:21]} f6 {[%emt 0:01:01][%cal Rf6e5]} 20. Rb4 {[%emt 0:00:31]} Bf8 {[%emt 0:01:07]} 21. Rc4 {[%emt 0:01:08]} (21. Nxe4 Bxe4 22. Bxf8 (22. Rxe4 Nxc5 23. Rd4 Rad8 $17) 22... Kxf8 $17) (21. Bxf8 $11 Rxf8 22. Nxe4) 21... Bxd6 $17 {[%emt 0:00:34]} 22. exd6 {[%emt 0:00:22]} e5 {[%emt 0:00:07]} 23. b4 {[%emt 0:00:57]} Kg7 {[%emt 0:01:21]} 24. Nxe4 {[%emt 0:00:07]} Bxe4 {[%emt 0:00:07]} 25. Rxe4 {[%emt 0:00:02]} f5 {[%emt 0:00:04]} 26. Re3 {[%emt 0:00:29]} exf4 {[%emt 0:00:10]} 27. Rxe8 {[%emt 0:00:03]} Rxe8 {[%emt 0:00:01][%mdl 4096] Endgame KRB-KRN} 28. Bd3 {[%emt 0:00:03]} Re3 {[%emt 0:00:08]} 29. Bc4 {[%emt 0:00:12]} (29. Bb1 $17) 29... g5 $19 {[%emt 0:00:07][%cal Bg6g5,Bg5g4,Bg4g3][%mdl 32]} 30. b3 {[%emt 0:00:32]} Kf6 {[%emt 0:00:06]} 31. Rd1 {[%emt 0:00:07]} g4 {[%emt 0:00:08]} 32. Rf1 {[%emt 0:00:14]} Ke5 {[%emt 0:00:15]} (32... gxh3 33. Rxf4 Re1+ 34. Kh2 $17) 33. Bf7 {[%emt 0:00:10]} Nf6 {[%emt 0:00:37] Against Be8} 34. Rd1 $2 {[%emt 0:00:13]} (34. hxg4 fxg4 35. Rd1) 34... g3 {[%emt 0:01:05]} (34... gxh3 $2 35. gxh3 (35. d7 $2 Nxd7 36. Rxd7 Rg3 $19) 35... Rg3+ 36. Kh2 $19) (34... Nd7 35. Be8 Nf8 36. d7 $17) 35. Kf1 {[%emt 0:00:03]} f3 $2 {[%emt 0:00:01]} (35... Nd7 $19 {Threatens to win with ...Kf6.} 36. Kg1 Kf6) 36. gxf3 $1 $15 {[%emt 0:00:04]} (36. d7 $2 Nxd7 37. gxf3 (37. Rxd7 $2 Re1+ 38. Kxe1 fxg2 $19) 37... Rxf3+ 38. Kg1 Nf6 $19) 36... Rxf3+ {[%emt 0:00:02]} 37. Kg1 {[%emt 0:00:02]} Rc3 {[%emt 0:00:06] Strongly threatening ...f4.} (37... Nd7 $6 38. Re1+ Kd4 39. Re7 $11) 38. d7 {[%emt 0:00:02] [#]} Nxd7 {[%emt 0:00:02]} 39. Rxd7 $17 {[%emt 0:00:01] KRB-KR} f4 $1 {[%emt 0:00:07][%cal Bf5f4,Bf4f3,Bf3f2][%mdl 32] And now ...Rc1+ would win.} 40. Bc4 $2 {[%emt 0:00:18][%mdl 8192] [#] This move loses the game for White.} (40. Rxb7 f3 41. Re7+ Kf6 42. Re6+ Kxf7 43. Re1 f2+ 44. Kf1 fxe1=N 45. Kxe1 g2 46. Kf2 Rg3 47. Kg1 Kf6 48. b5 axb5 49. b4 Kf5 50. Kf2 g1=Q+ 51. Ke2 Qh2+ 52. Kf1 Rg1#) (40. Bh5 $17) 40... f3 $1 $19 {[%emt 0:00:04] ( -> ...Rc1+)} 41. Rd1 {[%emt 0:00:02] Prevents Rc1.} Rc2 {[%emt 0:00:09] Black mates.} 42. Bf1 {[%emt 0:00:03]} Rh2 {[%emt 0:00:06][%csl Gg3,Gh2][%cal Rf3f2]} 43. Bc4 {[%emt 0:00:13]} f2+ {[%emt 0:00:06]} 44. Kf1 {[%emt 0:00:00]} Rh1+ {[%emt 0:00:01]} ({And not} 44... Rxh3 45. Kg2 Rh2+ 46. Kf3 $15) 45. Ke2 {[%emt 0:00:01]} Rxd1 {[%emt 0:00:01] Weighted Error Value: White=0.50/Black=0.17 (very precise)} ({Weaker is} 45... Rxh3 46. Kf3 $15) 0-1

[Event "Romanian Rapid Open 2022"]
[Site "Sebes"]
[Date "2022.12.02"]
[Round "3.7"]
[White "Cnejev, Vladimir-Alexandru"]
[Black "Baratosi, Daniel"]
[Result "0-1"]
[ECO "B01"]
[WhiteElo "2293"]
[BlackElo "2335"]
[Annotator "TA"]
[PlyCount "90"]
[EventDate "2022.12.02"]
[EventType "rapid"]
[EventCountry "ROU"]
[SourceTitle "playchess.com"]
[Source "ChessBase"]
[SourceQuality "1"]
[TimeControl "600+5"]

{[%evp 9,90,45,61,34,42,16,20,12,11,16,28,27,36,23,18,-205,-172,-197,7,9,53,38,89,-14,78,25,39,44,41,27,50,10,50,0,0,4,88,54,52,26,45,52,54,-13,-7,-14,0,-57,-54,-580,-564,-552,-539,-1073,-426,-29982,-29970,-5285,-36,-26,874,-23,0,-71,584,-513,-491,-417,-395,-4622,-4622,-4622,-4622,-4622,-4622,-4173,-4132,-4107,-3298,-2436,-620,-443,-443]} 1. e4 {[%emt 0:00:02]} d5 {[%emt 0:00:06]} 2. exd5 {[%emt 0:00:01]} Qxd5 {[%emt 0:00:02]} 3. Nc3 {[%emt 0:00:02]} Qd8 {[%emt 0:00:01]} 4. d4 {[%emt 0:00:01]} Nf6 {[%emt 0:00:03]} 5. Nf3 {[%emt 0:00:02]} Bg4 {[%emt 0:00:02]} 6. Be2 {[%emt 0:00:06] B01: Scandinavian Defence.} (6. h3 $5 {[%cal Rh3g4]} Bxf3 7. Qxf3 $14 (7. gxf3 e6 $11)) 6... c6 {[%emt 0:00:08]} 7. Be3 {[%emt 0:00:09]} e6 {[%emt 0:00:03]} 8. O-O {[%emt 0:00:44] The position is equal.} Nbd7 {[%emt 0:00:03]} 9. h3 {[%emt 0:00:09]} Bxf3 {[%emt 0:00:06]} 10. Bxf3 {[%emt 0:00:02]} Qc7 {[%emt 0:00:07]} 11. Qd2 {[%emt 0:00:18]} Bd6 {[%emt 0:00:12]} 12. Ne4 $2 {[%emt 0:00:12]} (12. Rfe1 $11) 12... Nxe4 $19 {[%emt 0:00:13]} 13. Bxe4 {[%emt 0:00:02]} Nf6 $2 {[%emt 0:00:02]} (13... f5 $19 14. Bf3 f4 15. Bxf4 (15. Bh5+ $2 g6 $19) 15... Bxf4) 14. Bf3 {[%emt 0:00:19] [#]} O-O-O $146 {[%emt 0:00:20]} ({Predecessor:} 14... O-O 15. c4 Rad8 16. Qc3 Rfe8 17. Bg5 Be7 18. Rfe1 Qb6 19. c5 Qc7 20. Be3 Rd7 {½-½ (54) Nguyen,A (1645)-Kirchner,M (1409) Magdeburg 2014}) 15. c3 {[%emt 0:04:43]} h6 {[%emt 0:01:05]} (15... Nd5 $14) 16. g3 {[%emt 0:02:02]} (16. b4 $16) 16... g5 {[%emt 0:00:31]} (16... Nd5 $11) 17. Bg2 {[%emt 0:00:01]} (17. c4 $1 $16) 17... Nd5 {[%emt 0:00:30][%cal Od5f4]} 18. c4 {[%emt 0:00:28]} Nxe3 19. Qxe3 {[%emt 0:00:01]} Rhe8 {[%emt 0:02:09]} 20. Rfd1 {[%emt 0:00:29]} (20. c5 {simplifies} Bf8 21. b4 e5 22. dxe5 Rxe5 23. Qb3) 20... c5 {[%emt 0:01:19]} 21. dxc5 {[%emt 0:00:22]} (21. b4 $14 {is superior.} cxd4 22. Rxd4 (22. Qxd4 Be5 $11)) 21... Bxc5 $11 {[%emt 0:00:03]} 22. Qf3 {[%emt 0:00:05]} f5 {[%emt 0:00:42]} (22... a5 $11) 23. b4 {[%emt 0:00:32]} (23. Rxd8+ {simplifies} Rxd8 24. b4 Bd4 25. Re1) 23... Bd4 {[%emt 0:00:23]} 24. Rac1 {[%emt 0:00:01]} Rf8 {[%emt 0:00:42]} 25. c5 {[%emt 0:00:38]} g4 {[%emt 0:00:13] Prevents c6.} 26. Qb3 {[%emt 0:00:10]} (26. Qe2 $14) 26... gxh3 {[%emt 0:00:09] Chess con chili.} 27. Bxh3 {[%emt 0:00:11]} (27. c6 {with more complications.} Kb8 28. Bxh3 bxc6 29. Qf3) 27... f4 {[%emt 0:00:14][%cal Bf5f4,Bf4f3][%mdl 32] Inhibits c6.} 28. Bxe6+ {[%emt 0:00:11]} (28. Rc4 $11 Qg7 29. Bxe6+ Kc7 30. Kh1) 28... Kb8 $15 {[%emt 0:00:01]} 29. g4 {[%emt 0:00:12][%mdl 8192]} (29. Kg2 $1 $15) 29... f3 $19 {[%emt 0:00:02]} 30. Rxd4 {[%emt 0:00:10]} Rxd4 {[%emt 0:00:02]} 31. b5 {[%emt 0:00:05]} Qf4 {[%emt 0:00:49]} (31... Qg7 $142 32. Kf1 Rxg4 33. Bxg4 Qxg4) 32. Qc3 {[%emt 0:00:08] [#]} (32. Qe3 $19 Qxe3 33. fxe3) 32... Rg8 $3 {[%emt 0:00:13][%mdl 512]} 33. Kf1 {[%emt 0:00:04] [#]} (33. Qxd4 Qxd4) 33... Qh2 $2 {[%emt 0:00:05]} 34. Qxf3 $1 $15 {[%emt 0:00:05][%mdl 64]} Qe5 $2 {[%emt 0:00:41][%mdl 8192]} 35. Bf5 $2 {[%emt 0:00:05]} (35. Bxg8 $18 {Hoping for Qf8+.} Rf4 36. Qg3) 35... h5 $40 {[%emt 0:00:07][%mdl 128] aiming for ...Rf8. Black attacks.} (35... Qf4 $5 {[%cal Rf4f3]} 36. Rc3 Qxf3 37. Rxf3 Rf8 $15) 36. c6 {[%emt 0:00:05]} (36. Qb3 $1 $11 Rdd8 37. c6) 36... hxg4 $2 {[%emt 0:00:09][%mdl 8192] [#]} (36... Qxb5+ $17 37. Kg2 bxc6) 37. c7+ $4 {[%emt 0:00:05][%mdl 8192] [#]} (37. Qb3 $1 $18 {[%cal Rb3g8]} Rgd8 38. c7+ Qxc7 39. Rxc7 Kxc7 40. Qe6) 37... Qxc7 $1 $19 {[%emt 0:00:03][%mdl 512]} 38. Qe3 {[%emt 0:00:05][%cal Oc1c7]} Qd6 {[%emt 0:00:05]} 39. Qc3 $2 {[%emt 0:00:06]} (39. Qe6 Qxe6 40. Bxe6) 39... Rd1+ {[%emt 0:00:05] Black is clearly winning.} 40. Rxd1 {[%emt 0:00:02]} Qxd1+ {[%emt 0:00:02]} 41. Qe1 {[%emt 0:00:02]} Qxe1+ {[%emt 0:00:17]} 42. Kxe1 {[%emt 0:00:01] KR-KB} g3 {[%emt 0:00:01]} 43. fxg3 {[%emt 0:00:02]} Rxg3 {[%emt 0:00:01]} 44. Kd2 {[%emt 0:00:04]} Ra3 {[%emt 0:00:11]} (44... Rg2+ $142 45. Kc3 Rxa2) 45. Be6 {[%emt 0:00:02]} Kc7 {[%emt 0:00:01] Both players deserved the win here.   Weighted Error Value: White=1.15/Black=0.82} 0-1

[Event "Romanian Rapid Open 2022"]
[Site "Sebes"]
[Date "2022.12.02"]
[Round "3.8"]
[White "Nevednichy, Vladislav"]
[Black "Daianu, Cristian-Clement"]
[Result "1-0"]
[ECO "B84"]
[WhiteElo "2499"]
[BlackElo "2189"]
[Annotator "TA"]
[PlyCount "71"]
[EventDate "2022.12.02"]
[EventType "rapid"]
[EventCountry "ROU"]
[SourceTitle "playchess.com"]
[Source "ChessBase"]
[SourceQuality "1"]
[TimeControl "600+5"]

{[%evp 15,71,9,15,25,22,0,18,37,102,104,101,45,44,59,53,19,348,-29,-30,-22,10,0,0,0,125,33,34,35,47,21,16,0,0,0,0,0,95,86,87,62,117,121,341,319,437,457,529,513,480,487,671,654,724,669,760,678,12837,6052]} 1. e4 {[%emt 0:00:01] ChessBase II} c5 {[%emt 0:00:02]} 2. Nf3 {[%emt 0:00:01]} d6 {[%emt 0:00:01]} 3. d4 {[%emt 0:00:04]} cxd4 {[%emt 0:00:02]} 4. Nxd4 {[%emt 0:00:01]} Nf6 {[%emt 0:00:01]} 5. Nc3 {[%emt 0:00:01]} a6 {[%emt 0:00:01]} 6. a4 {[%emt 0:00:04]} e6 {[%emt 0:00:05]} 7. Be2 {[%emt 0:00:30] 7.a5 injects fresh life into this line.} Qc7 {[%emt 0:00:04]} 8. O-O {[%emt 0:00:02]} b6 {[%emt 0:00:01]} 9. f4 {[%emt 0:00:03][%cal Oe4e5] B84: Sicilian Scheveningen: 6 Be2 a6, lines without early Be3.} Nbd7 {[%emt 0:00:12] Against e5} 10. g4 {[%emt 0:00:15]} Bb7 {[%emt 0:00:26]} 11. Bf3 $1 {[%emt 0:00:03] The position is equal.} Nc5 {[%emt 0:00:51]} (11... h6 $14) 12. Qe2 $16 {[%emt 0:00:02]} e5 {[%emt 0:00:41] Against g5} 13. Nf5 {[%emt 0:00:13]} (13. Nd5 $16 Nxd5 14. exd5) 13... g6 $14 {[%emt 0:00:02]} 14. fxe5 {[%emt 0:00:26]} dxe5 {[%emt 0:00:10] [#]} 15. Ne3 $146 {[%emt 0:00:16][%cal Bf5e3,Be3d5,Bd5b6][%mdl 32]} (15. Bg5 {feels hotter.} Nfd7 16. Ne3 Ne6 17. Ned5) ({Predecessor:} 15. Bg5 Ncd7 16. Ne3 Bc5 17. Bg2 Qd6 18. Kh1 h5 19. Rad1 Bd4 20. Bxf6 Nxf6 21. g5 {0-1 (38) Fischer,J-Ghitescu,T Romania 1961 EXT 2001 [ChessBase II]}) 15... Ncxe4 $2 {[%emt 0:00:30][%mdl 8192] [#]} (15... Bxe4 $2 16. g5 $18) (15... Nfxe4 $2 16. Ned5 Qc6 17. Nxe4 $18) (15... Ne6 $1 $11 {and Black stays safe.}) 16. Nxe4 $2 {[%emt 0:01:07]} (16. Qg2 $1 $18) 16... Nxe4 $11 {[%emt 0:00:10]} (16... Bxe4 $2 17. Bg2 $18) 17. Qg2 {[%emt 0:00:23]} Nd6 {[%emt 0:01:18]} 18. Bxb7 {[%emt 0:01:14]} Qxb7 {[%emt 0:00:11]} 19. Nd5 {[%emt 0:00:09] Hoping for Bg5.} Bg7 {[%emt 0:00:19]} (19... O-O-O $1 $11 {remains equal.}) 20. Be3 {[%emt 0:00:09] White is much more active. The black rooks are badly placed.} ({White should play} 20. Bg5 $16 {Be7 is the strong threat.} O-O 21. Be7) 20... O-O $14 {[%emt 0:00:18]} 21. Nxb6 {[%emt 0:00:06] And now Qxb7 would win.} Rad8 {[%emt 0:01:38]} 22. Qxb7 {[%emt 0:00:09]} Nxb7 {[%emt 0:00:02]} 23. b4 {[%emt 0:00:25]} f5 {[%emt 0:00:08]} 24. gxf5 {[%emt 0:00:25]} gxf5 {[%emt 0:00:01] Threatens to win with ...f4.} 25. Rae1 {[%emt 0:00:11]} Nd6 {[%emt 0:01:05] [#]} (25... f4 $11 26. Bf2 Rde8) 26. c4 $1 $16 {[%emt 0:00:28]} f4 {[%emt 0:00:33]} 27. Bc5 {[%emt 0:00:01]} e4 {[%emt 0:00:01]} ({Black should try} 27... Rf6 $14) 28. Nd5 {[%emt 0:00:20] Strongly threatening Bxd6.} Nxc4 {[%emt 0:02:27]} (28... e3 $16) 29. Bxf8 $18 {[%emt 0:00:08]} ({Not} 29. Nxf4 Rfe8 $11) (29. Rxe4 Nd2 30. Bxf8 (30. Rexf4 Nxf1 31. Bxf8 Bxf8 $11) 30... Nxe4 31. Bxg7 (31. Nxf4 $2 Rxf8 32. Nd5 Rxf1+ 33. Kxf1 Be5 $19) 31... Rxd5 $14) 29... Rxf8 {[%emt 0:00:22]} 30. Rxf4 {[%emt 0:00:15] White is clearly winning.} ({Weaker is} 30. Nxf4 Nd2 $11) 30... Bd4+ {[%emt 0:00:13]} 31. Kg2 {[%emt 0:00:16]} Rxf4 {[%emt 0:00:29]} 32. Nxf4 {[%emt 0:00:02]} e3 {[%emt 0:00:04]} 33. Rc1 {[%emt 0:00:05]} Nb2 {[%emt 0:00:10]} 34. b5 {[%emt 0:00:11]} axb5 {[%emt 0:00:06]} 35. axb5 {[%emt 0:00:01]} Na4 {[%emt 0:00:03]} 36. Rc4 {[%emt 0:00:01] Weighted Error Value: White=0.32/Black=0.71} 1-0

[Event "Romanian Rapid Open 2022"]
[Site "Sebes"]
[Date "2022.12.02"]
[Round "3.9"]
[White "Dragomirescu, Robin-Alexandru"]
[Black "Dragomirescu, Angela"]
[Result "1-0"]
[ECO "A01"]
[WhiteElo "2337"]
[BlackElo "2104"]
[Annotator "TA"]
[PlyCount "29"]
[EventDate "2022.12.02"]
[EventType "rapid"]
[EventCountry "ROU"]
[SourceTitle "playchess.com"]
[Source "ChessBase"]
[SourceQuality "1"]
[TimeControl "600+5"]

{[%evp 10,29,31,30,34,8,15,0,19,0,26,18,26,0,0,-17,0,-22,0,0,855,831]} 1. b3 {[%emt 0:00:01]} e5 {[%emt 0:00:07]} 2. Bb2 {[%emt 0:00:01]} Nc6 {[%emt 0:00:04]} 3. e3 {[%emt 0:00:01]} Nf6 {[%emt 0:00:15]} 4. Nf3 {[%emt 0:00:02]} d6 {[%emt 0:01:16]} 5. d4 {[%emt 0:00:05]} exd4 {[%emt 0:00:13]} 6. Nxd4 {[%emt 0:00:02]} Be7 {[%emt 0:00:10] A01: Nimzowitsch-Larsen Opening.} 7. Nc3 {[%emt 0:00:16]} O-O {[%emt 0:00:04]} 8. Nxc6 {[%emt 0:00:48]} bxc6 {[%emt 0:00:01] The position is equal.} 9. Bd3 {[%emt 0:00:34] [#]} c5 $146 {[%emt 0:00:34]} ({Predecessor:} 9... d5 10. h3 Re8 11. Qd2 d4 12. exd4 Bb4+ 13. Be2 Ba6 {0-1 (13) Rousseau,B (1981)-Marin Dorta,A (1772) Tenerife 2021}) 10. Qf3 {[%emt 0:01:00]} Rb8 {[%emt 0:00:15]} 11. h3 {[%emt 0:02:25]} Bb7 {[%emt 0:00:33]} 12. Qg3 {[%emt 0:00:12]} d5 {[%emt 0:01:14][%cal Oc5c4]} 13. O-O-O {[%emt 0:00:05]} Bd6 {[%emt 0:01:02]} 14. Qh4 {[%emt 0:01:03][%cal Oc3d5] Nxd5! is the strong threat.} Bc6 {[%emt 0:00:50][%mdl 8192] [#]} (14... Re8 $11) 15. Nxd5 $1 {[%emt 0:04:45][%mdl 512] Weighted Error Value: White=0.16 (very precise) /Black=0.20 (precise)} 1-0

[Event "Romanian Rapid Open 2022"]
[Site "Sebes"]
[Date "2022.12.02"]
[Round "3.10"]
[White "Teodorescu, Razvan"]
[Black "Bulmaga, Irina"]
[Result "0-1"]
[ECO "E18"]
[WhiteElo "2118"]
[BlackElo "2426"]
[Annotator "TA"]
[PlyCount "98"]
[EventDate "2022.12.02"]
[EventType "rapid"]
[EventCountry "ROU"]
[SourceTitle "playchess.com"]
[Source "ChessBase"]
[SourceQuality "1"]
[TimeControl "600+5"]

{[%evp 23,98,26,70,6,-2,-29,-21,-114,-102,-136,-120,-95,-94,-103,-90,-118,-118,-253,-255,-264,-255,-293,-164,-151,-158,-282,-270,-307,-302,-279,-285,-376,-320,-442,-445,-816,-798,-1197,-1247,-1100,-680,-679,-670,-541,-489,-1097,-441,-2250,-1695,-1695,-1539,-1263,-451,-420,-431,-458,-457,-518,-509,-601,-611,-541,-490,-850,-786,-1039,-777,-10492,-10492,-29974,-29974,-29977,-29978,-29978,-29979,-29986,-29987]} 1. d4 {[%emt 0:00:01]} Nf6 {[%emt 0:00:03]} 2. c4 {[%emt 0:00:02]} e6 {[%emt 0:00:03]} 3. Nf3 {[%emt 0:00:05]} b6 {[%emt 0:00:03]} 4. g3 {[%emt 0:00:03]} Bb7 {[%emt 0:00:02]} 5. Bg2 {[%emt 0:00:03]} Bb4+ {[%emt 0:00:03]} 6. Bd2 {[%emt 0:00:07]} Be7 {[%emt 0:00:03]} 7. O-O {[%emt 0:00:21]} O-O {[%emt 0:00:04]} 8. Nc3 {[%emt 0:00:08]} d5 {[%emt 0:00:03]} 9. cxd5 {[%emt 0:00:12]} exd5 {[%emt 0:00:09]} 10. Rc1 {[%emt 0:00:34]} Nbd7 {[%emt 0:00:28]} 11. Bf4 {[%emt 0:00:34]} c5 {[%emt 0:00:14]} 12. dxc5 {[%emt 0:08:55]} bxc5 {[%emt 0:00:06]} 13. b3 {[%emt 0:00:00] [#] E18: Queen's Indian: Old Main Line (4 g3 Bb7 5 Bg2 Be7 6 0-0 0-0 7 Nc3).} (13. Nh4 $14) 13... d4 $146 {[%emt 0:00:53]} ({Predecessor:} 13... Rc8 14. h3 Qa5 15. g4 Nb6 16. a4 d4 17. Nb5 Rfd8 18. Ne5 Bxg2 19. Kxg2 Nbd5 20. Bd2 Qa6 {0-1 (32) Ljubisavljevic,Z (2290)-De Bortoli,P (2215) Padova 1998}) 14. Nb5 {[%emt 0:00:00][%cal Ob3b4]} Nd5 {[%emt 0:00:22] Prevents b4.} 15. Bd6 {[%emt 0:00:00]} (15. Bd2 $1 $11 {keeps the balance.}) 15... a6 $17 {[%emt 0:00:11]} 16. Bxe7 {[%emt 0:00:00]} Qxe7 {[%emt 0:00:02]} 17. Na3 {[%emt 0:00:00]} Nc3 {[%emt 0:00:03] Black is more active.} 18. Rxc3 {[%emt 0:00:00]} dxc3 {[%emt 0:00:02]} 19. Qc2 {[%emt 0:00:00]} Nf6 {[%emt 0:00:33][%cal Bd7f6,Bf6d5,Bd5b4,Bb4d3][%mdl 32]} (19... Rfe8 {simplifies} 20. Qxc3 a5 21. Nc4 a4) 20. Qxc3 {[%emt 0:00:00] This move loses the game for White.} (20. Nc4 $17 {was necessary.}) 20... Qxe2 $19 {[%emt 0:00:39]} 21. Re1 {[%emt 0:00:00]} Qxa2 {[%emt 0:00:03]} 22. Nc4 {[%emt 0:00:00]} Rab8 {[%emt 0:01:01]} (22... Rae8 $142 {Threatens to win with ...Rxe1+.} 23. Nfe5 Bxg2 24. Kxg2 Rb8) 23. Nfd2 {[%emt 0:00:00] aiming for Ra1.} Bxg2 {[%emt 0:00:42]} 24. Kxg2 {[%emt 0:00:00] [#]} (24. Ra1 $17 Qxa1+ 25. Qxa1) 24... Nd5 $1 {[%emt 0:00:12]} 25. Qe5 {[%emt 0:00:00]} Nb4 {[%emt 0:00:14]} 26. Re4 {[%emt 0:00:00]} Nd3 {[%emt 0:00:24]} 27. Qf5 {[%emt 0:00:00]} Rbd8 {[%emt 0:00:29]} 28. Rh4 {[%emt 0:00:00][%csl Gh4][%cal Rf5h7]} g6 {[%emt 0:00:10]} 29. Qf6 {[%emt 0:00:00]} (29. Qg5 $142 Qa1 30. Nf3) 29... Ne1+ {[%emt 0:00:14]} 30. Kf1 {[%emt 0:00:21]} Rxd2 {[%emt 0:00:06]} 31. Kxe1 {[%emt 0:00:05]} Rd4 {[%emt 0:01:44]} 32. Rxd4 {[%emt 0:00:14]} Qa1+ {[%emt 0:00:03][%mdl 64] [#] Pin} 33. Ke2 {[%emt 0:00:05]} Qxd4 {[%emt 0:00:09]} 34. Qxa6 {[%emt 0:00:24][%mdl 4096] Endgame KQR-KQN} (34. Qxd4 $142 cxd4 35. Kd1) 34... Re8+ {[%emt 0:00:06]} (34... Qe4+ $142 35. Ne3 Ra8) 35. Kf1 {[%emt 0:00:02]} (35. Ne3 $142 Qb2+ 36. Kf1) 35... Qd1+ {[%emt 0:00:06]} 36. Kg2 {[%emt 0:00:00]} Qd5+ {[%emt 0:00:01]} 37. Kh3 {[%emt 0:00:09]} Qe6+ {[%emt 0:00:15]} (37... Qf3 $142 38. Qb5 Rd8) 38. Qxe6 {[%emt 0:00:05]} Rxe6 {[%emt 0:00:02] KR-KN} 39. Kg4 {[%emt 0:00:06]} Kf8 {[%emt 0:00:05]} 40. Kf4 {[%emt 0:00:04]} Ke7 {[%emt 0:00:02]} 41. h4 {[%emt 0:00:07]} h5 {[%emt 0:00:10]} 42. f3 {[%emt 0:00:05]} Re1 {[%emt 0:00:06] ...Ke6 is the strong threat.} 43. Nd2 {[%emt 0:00:14]} (43. g4 $142 Rd1 44. gxh5 gxh5 45. Ne3 Rd4+ 46. Kg3) 43... Ke6 {[%emt 0:00:13] And now ...Kd5 would win.} 44. Ne4 {[%emt 0:00:17]} Kd5 {[%emt 0:00:10] Hoping for ...Kd4.} 45. Kg5 {[%emt 0:00:04]} Re3 {[%emt 0:00:07] ( -> ...Rd3)} 46. Nf6+ {[%emt 0:00:13]} Kd4 {[%emt 0:00:02] Black mates.} 47. g4 {[%emt 0:00:09]} Rxb3 {[%emt 0:00:06]} 48. gxh5 {[%emt 0:00:09]} gxh5 {[%emt 0:00:02]} (48... Rxf3 $2 49. h6 Rf5+ 50. Kg4 Rxf6 51. h7 $18) 49. f4 {[%emt 0:00:01]} c4 {[%emt 0:00:02] Weighted Error Value: White=1.25/Black=0.73} 0-1